fUSD/lending_fUSD_20260203
["ID","MTS","AMOUNT","RATE_DAILY","PERIOD"]
[404456307,1770151840325,-200.0,0.00017092,2]
[404456308,1770151840336,-217.15233878,0.00017092,2]
[404456309,1770151840346,-1481.23780761,0.00017092,2]
[404456310,1770151840355,-301.1433787,0.00017094,2]
[404456311,1770151840365,-277.80370179,0.00017104,4]
[404456312,1770151840375,-500.0,0.00017124,2]
[404456313,1770151840386,-200.0,0.0001717,2]
[404456314,1770151840395,-2000.0,0.000172,2]
[404456315,1770151840405,-3400.0,0.000172,6]
[404456316,1770151840414,-288.0,0.00017219,2]
[404456317,1770151840423,-1000.0,0.0001726,2]
[404456318,1770151840432,-1000.0,0.00017278,2]
[404456319,1770151840440,-1000.0,0.00017278,2]
[404456320,1770151840449,-1000.0,0.00017278,2]
[404456321,1770151840458,-1000.0,0.00017278,2]
[404456322,1770151840467,-1000.0,0.00017278,2]
[404456323,1770151840476,-1000.0,0.00017278,2]
[404456324,1770151840485,-1000.0,0.00017278,2]
[404456325,1770151840494,-1000.0,0.00017278,2]
[404456326,1770151840503,-1000.0,0.00017278,2]
[404456327,1770151840512,-1000.0,0.00017278,2]
[404456328,1770151840520,-1000.0,0.00017278,2]
[404456329,1770151840532,-1000.0,0.00017278,2]
[404456330,1770151840542,-1000.0,0.00017278,2]
[404456331,1770151840553,-1000.0,0.00017278,2]
[404456332,1770151840562,-501.74698965,0.00017278,2]
[404456333,1770151840573,-1000.0,0.00017278,2]
[404456334,1770151840583,-501.21553048,0.00017278,2]
[404456335,1770151840592,-1000.0,0.00017278,2]
[404456336,1770151840603,-1000.0,0.00017278,2]
[404456337,1770151840612,-1000.0,0.00017278,2]
[404456338,1770151840623,-500.74996921,0.00017278,2]
[404456339,1770151840632,-1000.0,0.00017278,2]
[404456340,1770151840641,-1000.0,0.00017278,2]
[404456341,1770151840650,-505.3656764,0.00017278,2]
[404456342,1770151840660,-1001.09816726,0.00017278,2]
[404456343,1770151840670,-501.07018625,0.00017278,2]
[404456344,1770151840679,-1000.0,0.00017278,2]
[404456345,1770151840688,-1000.0,0.00017278,2]
[404456346,1770151840698,-1303.55215976,0.00017285,2]
[404456347,1770151840709,-1000.0,0.00017293,7]
[404456348,1770151840718,-9035.0,0.00017294,2]
[404456349,1770151840728,-4600.0,0.000173,6]
[404456350,1770151840740,-200.0,0.00017342,2]
[404456351,1770151840750,-2836.0,0.0001736,2]
[404456352,1770151840759,-163.0,0.0001736,2]
[404456353,1770151840772,-2836.0,0.0001736,2]
[404456354,1770151840783,-828.0,0.0001736,2]
[404456355,1770151840795,-915.0,0.0001736,2]
[404456356,1770151840804,-2836.0,0.0001736,2]
[404456357,1770151840814,-500.0,0.0001737,2]
[404456358,1770151840823,-17891.0,0.000174,2]
[404456359,1770151840832,-5800.0,0.000174,6]
[404456360,1770151840841,-224.0,0.00017414,2]
[404456361,1770151840853,-7214.99664017,0.00017422,2]
[404456362,1770151840862,-2836.0,0.00017435,2]
[404456363,1770151840872,-3620.0,0.00017475,2]
[404456364,1770151840880,-392.10693279,0.00017487,2]
[404456365,1770151841052,-24786.1982369,0.000175,3]
[404456366,1770151841061,-160.0,0.000175,3]
[404456367,1770151841070,-1100.0,0.000175,6]
[404456368,1770151841079,-379.28,0.0001751,2]
[404456369,1770151841089,-200.0,0.00017515,2]
[404456370,1770151841098,-1000.0,0.00017534,2]
[404456371,1770151841107,-802.64621721,0.00017534,2]
[404456372,1770151841116,-173.17,0.00017562,2]
[404456373,1770151841126,-227.49286951,0.0001758,2]
[404456374,1770151841135,-2000.0,0.000176,2]
[404456375,1770151841144,-1100.0,0.000176,6]
[404456376,1770151841154,-187.78006525,0.0001764,2]
[404456377,1770151841163,-225.18697532,0.0001764,2]
[404456378,1770151841173,-200.0,0.0001764,2]
[404456379,1770151841182,-225.18697532,0.0001764,2]
[404456380,1770151841191,-587.87456219,0.0001764,2]
[404456381,1770151841200,-150.0,0.00017644,2]
[404456382,1770151841209,-293.99630296,0.00017648,2]
[404456383,1770151841219,-5888.0,0.00017672,2]
[404456384,1770151841229,-500.0,0.00017672,2]
[404456385,1770151841238,-839.0,0.0001768,2]
[404456386,1770151841247,-839.0,0.0001768,2]
[404456387,1770151841256,-839.0,0.0001768,2]
[404456388,1770151841266,-2836.0,0.0001768,2]
[404456389,1770151841276,-839.0,0.0001768,2]
[404456390,1770151841285,-200.0,0.0001769,2]
[404456391,1770151841294,-403.0,0.000177,5]
[404456392,1770151841303,-1100.0,0.000177,6]
[404456393,1770151841312,-267.67,0.00017702,2]
[404456394,1770151841322,-500.0,0.00017746,2]
[404456395,1770151841332,-930.2,0.00017746,2]
[404456396,1770151841341,-829.56,0.00017746,2]
[404456397,1770151841350,-5526.0,0.00017747,2]
[404456398,1770151841359,-490.13,0.0001778,2]
[404456399,1770151841369,-5709.02,0.00017781,2]
[404456400,1770151841378,-5436.0,0.00017784,2]
[404456401,1770151841387,-625.826,0.000178,2]
[404456402,1770151841396,-1410.0,0.000178,2]
[404456403,1770151841405,-3481.0,0.000178,2]
[404456404,1770151841413,-1335.0,0.000178,2]
[404456405,1770151841422,-163.201,0.000178,2]
[404456406,1770151841431,-1290.366,0.000178,2]
[404456407,1770151841440,-1224.717,0.000178,2]
[404456408,1770151841448,-917.0,0.000178,2]
[404456409,1770151841457,-6580.0,0.000178,2]
[404456410,1770151841466,-568.0,0.000178,2]
[404456411,1770151841475,-1100.0,0.000178,6]
[404456412,1770151841484,-372.78,0.00017808,2]
[404456413,1770151841493,-1000.0,0.00017808,2]
[404456414,1770151841502,-3760.56275963,0.0001782,10]
[404456415,1770151841511,-495.7739334,0.00017826,2]
[404456416,1770151841520,-501.24999677,0.00017826,2]
[404456417,1770151841529,-1500.0,0.00017826,2]
[404456418,1770151841538,-1137.40575138,0.00017826,2]
[404456419,1770151841547,-369.98194845,0.00017826,2]
[404456420,1770151841556,-501.01495544,0.00017826,2]
[404456421,1770151841565,-631.42408239,0.00017826,2]
[404456422,1770151841574,-1500.0,0.00017826,2]
[404456423,1770151841583,-501.14950121,0.00017826,2]
[404456424,1770151841592,-1181.56918098,0.00017826,2]
[404456425,1770151841601,-525.83341626,0.00017826,2]
[404456426,1770151841610,-1503.93923178,0.00017826,2]
[404456427,1770151841620,-1500.0,0.00017826,2]
[404456428,1770151841629,-1500.0,0.00017826,2]
[404456429,1770151841638,-1500.0,0.00017826,2]
[404456430,1770151841647,-1500.0,0.00017826,2]
[404456431,1770151841656,-504.40745995,0.00017826,2]
[404456432,1770151841666,-1500.0,0.00017826,2]
[404456433,1770151841675,-1510.89137022,0.00017826,2]
[404456434,1770151841684,-1505.8521348,0.00017826,2]
[404456435,1770151841693,-386.62164618,0.00017826,2]
[404456436,1770151841703,-1003.34257048,0.00017826,2]
[404456437,1770151841712,-93790.61614988,0.000179,2]
[404456438,1770151841722,-16343.14788591,0.000179,3]
[404456439,1770151841731,-500.0,0.000179,2]
[404456440,1770151841741,-25000.0,0.000179,3]
[404456441,1770151841750,-25000.0,0.000179,3]
[404456442,1770151841759,-160.0,0.000179,3]
[404456443,1770151841768,-8409.74790901,0.000179,2]
[404456444,1770151841781,-7214.99664017,0.000179,2]
[404456445,1770151841790,-1631.0,0.000179,6]
[404456446,1770151841799,-1303.55215976,0.000179,2]
[404456447,1770151841808,-970.54315292,0.000179,2]
[404456448,1770151841818,-5061.90720818,0.000179,2]
[404456449,1770151841827,-347.33715504,0.000179,2]
[404456450,1770151841836,-5071.21639742,0.000179,2]
[404456451,1770151841847,-11503.5850753,0.00017913,2]
[404456452,1770151841855,-3834.5283585,0.00017913,2]
[404456453,1770151841864,-334.5472959,0.00017913,2]
[404456454,1770151841875,-500.0,0.00017949,2]
[404456455,1770151841883,-531.16212896,0.00017949,2]
[404456456,1770151841892,-930.2,0.00017949,2]
[404456457,1770151841901,-930.2,0.00017949,2]
[404456458,1770151841912,-930.2,0.00017949,2]
[404456459,1770151841921,-930.2,0.00017949,2]
[404456460,1770151841930,-930.42062033,0.00017949,2]
[404456461,1770151841939,-829.56,0.00017949,2]
[404456462,1770151841948,-829.56,0.00017949,2]
[404456463,1770151841957,-829.56,0.00017949,2]
[404456464,1770151841966,-829.56,0.00017949,2]
[404456465,1770151841976,-829.63529265,0.00017949,2]
[404456466,1770151841987,-31113.6892668,0.00017949,2]
[404456467,1770151841996,-700.0,0.0001797,2]
[404456468,1770151842005,-700.0,0.0001797,2]
[404456469,1770151842016,-700.0,0.0001797,2]
[404456470,1770151842025,-853.678616,0.0001797,2]
[404456471,1770151842034,-500.28724876,0.00017973,2]
[404456473,1770151842043,-150.0,0.00017973,2]
[404456474,1770151842052,-152.0,0.00017973,4]
[404456475,1770151842063,-79756.48333695,0.0001799,3]
[404456476,1770151842072,-151.0,0.00017997,2]
[404456477,1770151842081,-291.67418347,0.00017999,2]
[404456478,1770151842090,-1336.91403435,0.00017999,5]
[404456479,1770151842100,-300.0,0.00017999,2]
[404456480,1770151842110,-300.0,0.00017999,2]
[404456481,1770151842121,-300.0,0.00017999,2]
[404456482,1770151842131,-666.0,0.00017999,2]
[404456483,1770151842139,-666.0,0.00017999,2]
[404456484,1770151842148,-300.0,0.00017999,2]
[404456485,1770151842158,-300.0,0.00017999,2]
[404456486,1770151842168,-300.0,0.00017999,2]
[404456487,1770151842177,-332.23395009,0.00017999,2]
[404456488,1770151842186,-2499341.55710274,0.00018,2]
[404456494,1770151842659,-351.5182,0.00013698,2]
[404456495,1770151842672,-632.4618,0.00013698,2]
[404456496,1770151842684,-995.14282382,0.00018,2]
[404456497,1770151842697,-1391.09247778,0.00018,2]
[404456498,1770151842716,-3816.5,0.00018,2]
[404456502,1770151844078,-640.39747628,0.00013698,2]
[404456503,1770151844089,-343.58252372,0.00013698,2]
[404456504,1770151844098,-493.99501853,0.00013698,2]
[404456505,1770151844109,-383.98499971,0.00013698,2]
[404456506,1770151844129,-105.99998176,0.00013698,2]
[404456507,1770151844138,-370.8129698,0.00013698,2]
[404456508,1770151844157,-613.1670302,0.00013698,2]
[404456509,1770151844166,-472.13871908,0.00013698,2]
[404456510,1770151844326,-511.84128092,0.00013698,2]
[404456511,1770151844335,-984.15724743,0.00013698,2]
[404456512,1770151844345,-3258.079,0.000178,2]
[404456513,1770151844354,-12347.82363738,0.00018,2]
[404456514,1770151844365,-308.31050027,0.00018,2]
[404456515,1770151844379,-1579.56364063,0.00018,2]
[404456516,1770151844405,-1803.00271473,0.00018,2]
[404456517,1770151844423,-7074304.26988849,0.00018,2]
[404456518,1770151844439,-1483.09421197,0.00018,2]
[404456519,1770151844450,-764.28832785,0.00018,2]
[404456520,1770151844461,-2095.592,0.00018,2]
[404456521,1770151844739,-2302.665,0.00018,2]
[404456522,1770151844754,-3492.51824415,0.00018,2]
[404456523,1770151844765,-7930.91974023,0.00018,2]
[404456536,1770151845813,-500.0,0.00013698,2]
[404456537,1770151845822,-500.0,0.00013698,2]
[404456538,1770151845832,-500.0,0.00013698,2]
[404456539,1770151845842,-1475.48992037,0.000179,3]
[404456540,1770151845852,-1085.10121987,0.00017999,5]
[404456541,1770151845862,-1085.10121987,0.00017999,5]
[404456542,1770151845873,-2599.15381926,0.00018,2]
[404456543,1770151845884,-578.86462302,0.00018,2]
[404456544,1770151845895,-299.68578152,0.00018,2]
[404456768,1770152493581,2431.544,9.47e-05,2]
[404456769,1770152498195,246.195,9.47e-05,2]
[404456775,1770152536919,3373037.22966872,9.563e-05,2]
[404456869,1770153031726,-459.25366329,9.17e-05,2]
[404456870,1770153031738,-40.74633671,9.17e-05,2]
[404456871,1770153031748,-300.0,9.176e-05,2]
[404456872,1770153031757,-250.0,9.182e-05,2]
[404456873,1770153031766,-751.02640532,9.193e-05,2]
[404456875,1770153031778,-739.83242181,9.193e-05,2]
[404456876,1770153031790,-450.0,9.193e-05,2]
[404456877,1770153031801,-3316.04117287,9.193e-05,2]
[404456878,1770153031812,-557.17,9.234e-05,2]
[404456879,1770153031832,-250.0,9.325e-05,2]
[404456880,1770153031851,-500.0,9.399e-05,2]
[404456881,1770153031866,-1200.0,9.479e-05,2]
[404456882,1770153031877,-26454.28214082,9.48e-05,2]
[404456883,1770153031901,-91193.1811578,9.48e-05,2]
[404456884,1770153031912,-2518.78506904,9.48e-05,2]
[404456885,1770153031925,-12692.58109339,9.48e-05,2]
[404456886,1770153031939,-2482.54871645,9.48e-05,2]
[404456887,1770153031979,-1703.04317917,9.48e-05,2]
[404456888,1770153031990,-7703.380747,9.48e-05,2]
[404456889,1770153032001,-782.76857672,9.48e-05,2]
[404456890,1770153032020,-426.83436047,9.48e-05,2]
[404456891,1770153032031,-900.49621033,9.48e-05,2]
[404456893,1770153032042,-2260.62805522,9.48e-05,2]
[404456895,1770153032054,-460.97194478,9.48e-05,2]
[404456897,1770153032065,-275.03753565,9.48e-05,2]
[404456901,1770153032112,-1422.63899574,9.48e-05,2]
[404456948,1770153037928,-5385.14420178,9.48e-05,2]
[404456949,1770153037986,-2963.50144814,9.48e-05,2]
[404456950,1770153038096,-1274.5369169,9.48e-05,2]
[404457061,1770153039847,-396.71618048,9.48e-05,2]
[404457062,1770153040171,-629.67317731,9.48e-05,2]
[404457063,1770153040185,-58107.30469281,9.48e-05,2]
[404457064,1770153040196,-300.0,9.498e-05,2]
[404457065,1770153040205,-4325.59,9.499e-05,2]
[404457066,1770153040214,-150.0,9.56e-05,2]
[404457067,1770153040224,-1000.0,9.562e-05,2]
[404457069,1770153040234,-2500.0,9.562e-05,2]
[404457071,1770153040245,-150.0,9.578e-05,2]
[404457073,1770153040255,-500.0,9.579e-05,2]
[404457075,1770153040264,-167.45602324,9.579e-05,2]
[404457077,1770153040273,-500.0,9.579e-05,2]
[404457078,1770153040283,-500.0,9.579e-05,2]
[404457080,1770153040292,-500.0,9.579e-05,2]
[404457081,1770153040301,-500.0,9.579e-05,2]
[404457082,1770153040310,-500.0,9.579e-05,2]
[404457083,1770153040319,-584.21003469,9.579e-05,2]
[404457084,1770153040329,-500.0,9.579e-05,2]
[404457085,1770153040338,-500.0,9.579e-05,2]
[404457086,1770153040348,-500.0,9.579e-05,2]
[404457087,1770153040357,-1201.52,9.58e-05,2]
[404457088,1770153040366,-9999.99,9.58e-05,2]
[404457089,1770153040376,-5270.33,9.58e-05,2]
[404457090,1770153040385,-262164.78,9.58e-05,2]
[404457091,1770153040394,-348.98,9.58e-05,2]
[404457092,1770153040403,-3630.97,9.619e-05,2]
[404457093,1770153040413,-9999.99,9.619e-05,2]
[404457094,1770153040422,-1470.55,9.619e-05,2]
[404457095,1770153040431,-4999.99,9.619e-05,2]
[404457096,1770153040440,-9999.99,9.619e-05,2]
[404457097,1770153040449,-427.6,9.619e-05,2]
[404457098,1770153040458,-9999.99,9.619e-05,2]
[404457099,1770153040467,-14011.41,9.619e-05,2]
[404457100,1770153040476,-9999.99,9.619e-05,2]
[404457101,1770153040485,-150.99,9.619e-05,2]
[404457102,1770153040505,-150.99,9.619e-05,2]
[404457103,1770153040516,-19999.99,9.619e-05,2]
[404457104,1770153040526,-1000.0,9.662e-05,2]
[404457105,1770153040535,-1539.52,9.662e-05,2]
[404457106,1770153040545,-7122.81,9.662e-05,2]
[404457107,1770153040555,-499.99,9.662e-05,2]
[404457108,1770153040564,-999.99,9.662e-05,2]
[404457109,1770153040574,-299.99,9.662e-05,2]
[404457110,1770153040584,-51157.92,9.662e-05,2]
[404457111,1770153040594,-10000.0,9.663e-05,2]
[404457112,1770153040604,-1852.42,9.767e-05,2]
[404457113,1770153040613,-1651.62,9.797e-05,2]
[404457114,1770153040623,-24604.44,9.893e-05,2]
[404457115,1770153040634,-674.0,9.968e-05,2]
[404457116,1770153040644,-500.0,0.0001,2]
[404457117,1770153040655,-500.0,0.0001,2]
[404457118,1770153040664,-500.0,0.0001,2]
[404457119,1770153040674,-500.0,0.0001,2]
[404457120,1770153040683,-500.0,0.0001,2]
[404457121,1770153040693,-500.0,0.0001,2]
[404457122,1770153040703,-151.0,0.0001,2]
[404457123,1770153040712,-500.0,0.0001,2]
[404457124,1770153040722,-151.0,0.0001,2]
[404457125,1770153040731,-151.0,0.0001,2]
[404457126,1770153040741,-500.0,0.0001,2]
[404457127,1770153040751,-151.0,0.0001,2]
[404457128,1770153040760,-151.0,0.0001,2]
[404457129,1770153040769,-151.0,0.0001,2]
[404457130,1770153040779,-151.0,0.0001,2]
[404457131,1770153040788,-500.0,0.0001,2]
[404457132,1770153040797,-151.0,0.0001,2]
[404457133,1770153040807,-151.0,0.0001,2]
[404457134,1770153040817,-500.0,0.0001,2]
[404457135,1770153040826,-151.0,0.0001,2]
[404457136,1770153040836,-500.0,0.0001,2]
[404457137,1770153040845,-151.0,0.0001,2]
[404457138,1770153040854,-151.0,0.0001,2]
[404457139,1770153040868,-500.0,0.0001,2]
[404457140,1770153040877,-151.0,0.0001,2]
[404457141,1770153040887,-151.0,0.0001,2]
[404457142,1770153040896,-151.0,0.0001,2]
[404457143,1770153040906,-151.0,0.0001,2]
[404457144,1770153040916,-151.0,0.0001,2]
[404457145,1770153040925,-151.0,0.0001,2]
[404457146,1770153040935,-151.0,0.0001,2]
[404457147,1770153040944,-151.0,0.0001,2]
[404457148,1770153040954,-151.0,0.0001,2]
[404457149,1770153040964,-151.0,0.0001,2]
[404457150,1770153040973,-151.0,0.0001,2]
[404457151,1770153040983,-151.0,0.0001,2]
[404457152,1770153040993,-151.0,0.0001,2]
[404457153,1770153041005,-151.0,0.0001,2]
[404457154,1770153041015,-151.0,0.0001,2]
[404457155,1770153041025,-151.0,0.0001,2]
[404457156,1770153041036,-151.0,0.0001,2]
[404457157,1770153041045,-151.0,0.0001,2]
[404457158,1770153041057,-151.0,0.0001,2]
[404457159,1770153041067,-500.0,0.0001,2]
[404457160,1770153041077,-500.0,0.0001,2]
[404457162,1770153041086,-500.0,0.0001,2]
[404457163,1770153041096,-500.0,0.0001,2]
[404457165,1770153041105,-500.0,0.0001,2]
[404457166,1770153041114,-500.0,0.0001,2]
[404457167,1770153041124,-500.0,0.0001,2]
[404457168,1770153041133,-500.0,0.0001,2]
[404457169,1770153041142,-500.0,0.0001,2]
[404457170,1770153041151,-500.0,0.0001,2]
[404457171,1770153041165,-500.0,0.0001,2]
[404457172,1770153041174,-250.0,0.00010088,2]
[404457173,1770153041184,-300.0,0.00010088,2]
[404457174,1770153041193,-47690.05567031,0.00010259,2]
[404457175,1770153041203,-247.41,0.00010276,2]
[404457176,1770153041212,-33292.3487,0.00010328,2]
[404457177,1770153041221,-1000.0,0.00010328,2]
[404457178,1770153041231,-1680.0,0.00010427,2]
[404457179,1770153041241,-255.0,0.00010536,2]
[404457180,1770153041252,-500.0,0.00010548,2]
[404457182,1770153041262,-977.66411983,0.000109,2]
[404457183,1770153041271,-977.66411982,0.000109,2]
[404457184,1770153041280,-166.66,0.00010959,2]
[404457185,1770153041289,-150.0,0.00010959,2]
[404457186,1770153041298,-568.13485314,0.00011017,2]
[404457187,1770153041308,-500.0,0.00011017,2]
[404457188,1770153041317,-501.19379068,0.00011017,2]
[404457189,1770153041327,-500.0,0.00011017,2]
[404457190,1770153041338,-500.0,0.00011017,2]
[404457191,1770153041347,-500.0,0.00011017,2]
[404457192,1770153041357,-438.01782069,0.00011017,2]
[404457193,1770153041367,-500.0,0.00011017,2]
[404457194,1770153041379,-500.0,0.00011017,2]
[404457195,1770153041389,-500.0,0.00011017,2]
[404457196,1770153041399,-153.7070239,0.00011017,2]
[404457197,1770153041408,-500.0,0.00011017,2]
[404457198,1770153041417,-500.0,0.00011017,2]
[404457199,1770153041427,-166.66,0.00011085,2]
[404457200,1770153041436,-500.0,0.00011096,2]
[404457201,1770153041447,-1109.71398108,0.00011099,2]
[404457202,1770153041457,-1109.71398103,0.00011099,2]
[404457203,1770153041467,-1323.7972059,0.00011104,2]
[404457204,1770153041476,-2204.30826943,0.00011181,2]
[404457205,1770153041485,-166.66,0.00011211,2]
[404457206,1770153041494,-150.0,0.00011233,2]
[404457207,1770153041505,-1000.0,0.0001128,2]
[404457208,1770153041516,-1109.71398103,0.00011287,2]
[404457209,1770153041525,-166.66,0.00011336,2]
[404457210,1770153041534,-166.66,0.00011462,2]
[404457211,1770153041543,-2351.0,0.00011469,2]
[404457212,1770153041554,-507.89061165,0.00011565,2]
[404457213,1770153041564,-1000.0,0.00011565,2]
[404457214,1770153041574,-1000.0,0.00011565,2]
[404457215,1770153041583,-1000.0,0.00011565,2]
[404457216,1770153041593,-727.81084573,0.00011565,2]
[404457217,1770153041602,-1000.0,0.00011565,2]
[404457218,1770153041612,-1000.0,0.00011565,2]
[404457219,1770153041621,-221.6894181,0.00011565,2]
[404457220,1770153041632,-1000.0,0.00011565,2]
[404457221,1770153041641,-166.66,0.00011588,2]
[404457222,1770153041651,-215.0,0.00011589,2]
[404457223,1770153041660,-1064.27,0.0001186,2]
[404457224,1770153041670,-977.66411982,0.00011886,2]
[404457225,1770153041679,-702.19051214,0.00012113,2]
[404457226,1770153041688,-1500.0,0.00012113,2]
[404457227,1770153041698,-1085.6983119,0.00012113,2]
[404457228,1770153041707,-1500.0,0.00012113,2]
[404457229,1770153041716,-1500.0,0.00012113,2]
[404457230,1770153041725,-1500.0,0.00012113,2]
[404457231,1770153041734,-250.0,0.00012117,2]
[404457232,1770153041743,-1109.71398103,0.00012232,2]
[404457233,1770153041753,-278.03,0.00012256,2]
[404457234,1770153041762,-3292.0,0.00012616,2]
[404457235,1770153041771,-2000.0,0.00012661,2]
[404457236,1770153041780,-2000.0,0.00012661,2]
[404457237,1770153041790,-2000.0,0.00012661,2]
[404457238,1770153041799,-2000.0,0.00012661,2]
[404457239,1770153041812,-1000.0,0.0001269,2]
[404457240,1770153041822,-977.66411982,0.00013089,2]
[404457241,1770153041831,-1109.71398103,0.00013177,2]
[404457242,1770153041840,-502.61786166,0.00013208,2]
[404457243,1770153041850,-2500.0,0.00013208,2]
[404457244,1770153041859,-2500.0,0.00013208,2]
[404457245,1770153041868,-1116.49098689,0.00013208,2]
[404457246,1770153041878,-52419.31454208,0.00013326,2]
[404457247,1770153041887,-3240.0,0.00013425,2]
[404457248,1770153041897,-5817.20439859,0.00013681,2]
[404457249,1770153041906,-10262.23809438,0.00013681,2]
[404457250,1770153041916,-15351.69444504,0.00013681,2]
[404457251,1770153041925,-20771.388,0.00013681,2]
[404457252,1770153041934,-707.45,0.00013698,2]
[404457253,1770153041943,-707.45,0.00013698,2]
[404457254,1770153041953,-707.45,0.00013698,2]
[404457255,1770153041962,-707.45,0.00013698,2]
[404457256,1770153041971,-707.45,0.00013698,2]
[404457257,1770153041981,-707.45,0.00013698,2]
[404457258,1770153041990,-707.45,0.00013698,2]
[404457259,1770153042004,-707.45,0.00013698,2]
[404457260,1770153042013,-707.45,0.00013698,2]
[404457261,1770153042023,-707.45,0.00013698,2]
[404457262,1770153042032,-707.45,0.00013698,2]
[404457263,1770153042041,-707.45,0.00013698,2]
[404457264,1770153042051,-707.45,0.00013698,2]
[404457265,1770153042060,-707.45,0.00013698,2]
[404457266,1770153042070,-707.45,0.00013698,2]
[404457267,1770153042079,-500.0,0.00013698,2]
[404457268,1770153042088,-500.0,0.00013698,2]
[404457269,1770153042098,-500.0,0.00013698,2]
[404457270,1770153042107,-500.0,0.00013698,2]
[404457271,1770153042116,-500.0,0.00013698,2]
[404457272,1770153042126,-500.0,0.00013698,2]
[404457273,1770153042135,-500.0,0.00013698,2]
[404457274,1770153042144,-500.0,0.00013698,2]
[404457275,1770153042154,-392.76776902,0.00013698,2]
[404457276,1770153042164,-500.0,0.00013698,2]
[404457277,1770153042173,-500.0,0.00013698,2]
[404457278,1770153042185,-500.0,0.00013698,2]
[404457279,1770153042194,-500.0,0.00013698,2]
[404457280,1770153042208,-500.0,0.00013698,2]
[404457281,1770153042218,-500.0,0.00013698,2]
[404457282,1770153042228,-500.0,0.00013698,2]
[404457283,1770153042237,-340.86649345,0.00013698,2]
[404457284,1770153042247,-500.0,0.00013698,2]
[404457285,1770153042258,-500.0,0.00013698,2]
[404457286,1770153042268,-500.0,0.00013698,2]
[404457287,1770153042278,-500.0,0.00013698,2]
[404457288,1770153042287,-500.0,0.00013698,2]
[404457289,1770153042298,-500.0,0.00013698,2]
[404457290,1770153042307,-500.0,0.00013698,2]
[404457291,1770153042316,-257.68029919,0.00013698,2]
[404457292,1770153042325,-500.0,0.00013698,2]
[404457293,1770153042335,-500.0,0.00013698,2]
[404457294,1770153042344,-500.0,0.00013698,2]
[404457295,1770153042354,-500.0,0.00013698,2]
[404457296,1770153042363,-500.0,0.00013698,2]
[404457297,1770153042372,-500.0,0.00013698,2]
[404457298,1770153042382,-500.0,0.00013698,2]
[404457299,1770153042391,-500.0,0.00013698,2]
[404457300,1770153042404,-621.54062452,0.00013698,2]
[404457301,1770153042414,-500.0,0.00013698,2]
[404457302,1770153042423,-500.0,0.00013698,2]
[404457303,1770153042433,-500.0,0.00013698,2]
[404457304,1770153042443,-500.0,0.00013698,2]
[404457305,1770153042452,-500.0,0.00013698,2]
[404457306,1770153042461,-500.0,0.00013698,2]
[404457307,1770153042472,-500.0,0.00013698,2]
[404457308,1770153042482,-500.0,0.00013698,2]
[404457309,1770153042491,-500.0,0.00013698,2]
[404457310,1770153042501,-500.0,0.00013698,2]
[404457311,1770153042511,-500.0,0.00013698,2]
[404457312,1770153042520,-500.0,0.00013698,2]
[404457313,1770153042530,-500.0,0.00013698,2]
[404457314,1770153042539,-500.0,0.00013698,2]
[404457315,1770153042549,-500.0,0.00013698,2]
[404457316,1770153042559,-500.0,0.00013698,2]
[404457317,1770153042568,-500.0,0.00013698,2]
[404457318,1770153042578,-500.0,0.00013698,2]
[404457319,1770153042587,-500.0,0.00013698,2]
[404457320,1770153042600,-500.0,0.00013698,2]